bitfinex/quotes_SOLUSD_20260226
["timestamp","ask_amount","ask_price","bid_price","bid_amount"]
[1772126005208,4.4243074,85.427,85.4,10.16396668]
[1772126005408,4.4243074,85.427,85.41,10.16396668]
[1772126005708,4.4243074,85.444,85.42,10.16396668]
[1772126005918,16.12795404,85.444,85.42,10.16396668]
[1772126006224,4.4243074,85.443,85.41,10.16396668]
[1772126006535,4.4243074,85.439,85.4,10.16396668]
[1772126007334,4.4243074,85.439,85.401,13.24821176]
[1772126007833,4.4243074,85.437,85.4,10.16396668]
[1772126008132,4.4243074,85.429,85.39,10.16396668]
[1772126009205,4.4243074,85.429,85.391,1.538747]
[1772126009408,4.4243074,85.429,85.39,10.16396668]
[1772126009409,4.4243074,85.429,85.4,11.70271368]
[1772126009636,4.4243074,85.429,85.41,10.16396668]
[1772126009922,4.4243074,85.429,85.4,1.538747]
[1772126009923,11.70576391,85.428,85.4,11.70271368]
[1772126010419,4.4243074,85.427,85.4,10.16396668]
[1772126012307,40.9711329,85.426,85.4,10.16396668]
[1772126012502,45.3954403,85.426,85.4,10.16396668]
[1772126012908,16.13034537,85.426,85.4,11.70271368]
[1772126013134,4.4243074,85.442,85.41,11.70271368]
[1772126013306,4.4243074,85.44,85.411,1.538747]
[1772126013500,11.70398286,85.441,85.42,10.16396668]
[1772126013704,11.70398286,85.441,85.411,1.538747]
[1772126013905,16.12829026,85.441,85.411,1.538747]
[1772126014407,4.4243074,85.44,85.411,1.538747]
[1772126014835,4.4243074,85.44,85.41,10.16396668]
[1772126015005,4.4243074,85.44,85.4,10.16396668]
[1772126015214,4.4243074,85.44,85.4,11.70271368]
[1772126016815,4.18856787,85.438,85.4,11.70271368]
[1772126017027,4.18856787,85.429,85.39,10.16396668]
[1772126018535,4.18856787,85.427,85.39,10.16396668]
[1772126019138,4.18856787,85.427,85.391,1.538747]
[1772126020044,4.18856787,85.427,85.39,10.16490724]
[1772126020534,4.14043739,85.425,85.39,10.16490724]
[1772126020741,4.14043739,85.419,85.38,10.16490724]
[1772126020916,4.14043739,85.419,85.381,1.538747]
[1772126021119,4.14043739,85.419,85.39,10.16490724]
[1772126021735,4.14043739,85.419,85.382,1.538747]
[1772126022111,45.11157029,85.426,85.391,1.538747]
[1772126022310,4.14043739,85.425,85.391,1.538747]
[1772126022521,58.51388474,85.45,85.391,1.538747]
[1772126022522,40.97209214,85.424,85.391,1.538747]
[1772126022722,4.14043739,85.423,85.393,1.538747]
[1772126024323,4.14043739,85.423,85.39,10.16490724]
[1772126024535,4.14043739,85.419,85.38,10.16490724]
[1772126025315,4.14043739,85.419,85.38,3.79647626]
[1772126026420,4.14043739,85.419,85.371,1.538747]
[1772126026621,99.50598205,85.422,85.37,3.79647626]
[1772126026622,4.14043739,85.407,85.37,3.79647626]
[1772126026826,4.14043739,85.407,85.371,1.538747]
[1772126027027,4.14043739,85.407,85.37,3.79647626]
[1772126027930,4.14043739,85.399,85.36,3.79647626]
[1772126028335,4.14043739,85.399,85.35,3.79647626]
[1772126028534,4.14043739,85.397,85.36,3.79647626]
[1772126028717,4.14043739,85.397,85.361,1.538747]
[1772126029030,4.14043739,85.401,85.37,3.79647626]
[1772126029218,4.14043739,85.401,85.364,1.538747]
[1772126029418,4.14043739,85.399,85.364,1.538747]
[1772126030531,4.14043739,85.399,85.371,1.538747]
[1772126030735,4.14043739,85.42,85.39,3.79647626]
[1772126030920,11.70644908,85.423,85.39,3.79647626]
[1772126030921,11.70644908,85.423,85.391,1.538747]
[1772126031121,11.70644908,85.423,85.4,5.33522326]
[1772126031435,4.14043739,85.422,85.392,1.538747]
[1772126032639,4.14043739,85.42,85.381,1.538747]
[1772126032841,4.14043739,85.409,85.364,1.538747]
[1772126033038,4.14043739,85.409,85.365,1.538747]
[1772126033237,4.14043739,85.409,85.371,1.538747]
[1772126034522,4.14043739,85.409,85.364,11.71447459]
[1772126034740,4.14043739,85.399,85.364,11.71447459]
[1772126035043,4.14043739,85.399,85.365,1.538747]
[1772126035334,4.14043739,85.399,85.359,11.71521899]
[1772126035537,4.14043739,85.399,85.358,1.538747]
[1772126035840,4.14043739,85.399,85.354,11.71589425]
[1772126036536,4.14043739,85.389,85.35,3.79647626]
[1772126036743,4.14043739,85.379,85.344,13.25595763]
[1772126037425,11.71124748,85.388,85.36,3.79647626]
[1772126037632,11.71001323,85.397,85.361,1.538747]
[1772126038347,4.14043739,85.396,85.361,1.538747]
[1772126038843,11.71028748,85.395,85.363,1.538747]
[1772126039644,4.14043739,85.394,85.363,1.538747]
[1772126040146,4.14043739,85.442,85.371,1.538747]
[1772126040344,521.3,85.784,85.361,11.71487966]
[1772126040345,4.14043739,85.439,85.391,1.538747]
[1772126040547,4.14043739,85.429,85.382,1.538747]
[1772126040745,4.14043739,85.419,85.382,1.538747]
[1772126041250,4.12043739,85.419,85.382,1.538747]
[1772126041430,4.12043739,85.419,85.382,13.25074302]
[1772126042146,4.12043739,85.419,85.325,58.90450466]
[1772126042347,10.16849578,85.39,85.358,1.558747]
[1772126042749,3.69383402,85.426,85.361,11.71495179]
[1772126042750,11.70973898,85.399,85.361,11.71495179]
[1772126043050,11.70973898,85.399,85.361,13.27369879]
[1772126043255,4.14043739,85.398,85.361,13.23373879]
[1772126043430,4.14043739,85.398,85.362,1.558747]
[1772126044047,4.14043739,85.398,85.358,1.558747]
[1772126044259,4.14043739,85.398,85.361,1.558747]
[1772126045130,4.14043739,85.398,85.298,46.89392568]
[1772126045131,4.14043739,85.419,85.378,1.558747]
[1772126045643,3.69383402,85.432,85.37,11.72724278]
[1772126045644,4.14043739,85.409,85.37,11.72724278]
[1772126045845,4.14043739,85.409,85.371,1.558747]
[1772126047455,4.14043739,85.407,85.373,1.558747]
[1772126048352,15.84846645,85.412,85.381,1.558747]
[1772126048534,4.14043739,85.411,85.381,1.558747]
[1772126049356,4.14043739,85.409,85.37,10.16849578]
[1772126049558,4.14043739,85.409,85.371,1.558747]
[1772126049757,4.14043739,85.409,85.363,1.558747]
[1772126050258,4.14043739,85.409,85.37,11.72724278]
[1772126050435,4.14043739,85.409,85.37,1.558747]
[1772126050636,4.14043739,85.409,85.364,1.558747]
[1772126052161,3.69383402,85.432,85.35,10.16849578]
[1772126052162,4.32417212,85.389,85.35,10.16849578]
[1772126052461,4.32417212,85.379,85.341,30.8528765]
[1772126052836,4.32417212,85.359,85.316,1.558747]
[1772126053054,4.32417212,85.349,85.31,21.890451]
[1772126053436,10.16849578,85.34,85.301,1.558747]
[1772126053653,4.32417212,85.339,85.301,11.72305981]
[1772126054256,10.16849578,85.34,85.301,11.72305981]
[1772126054257,4.32417212,85.337,85.301,11.72305981]
[1772126054954,4.32417212,85.329,85.3,0.2]
[1772126055154,4.32417212,85.329,85.3,11.9232092]
[1772126055353,4.32417212,85.329,85.3,22.09170498]
[1772126055654,4.32417212,85.329,85.3,0.2]
[1772126056555,4.32417212,85.327,85.3,0.2]
[1772126057050,4.32417212,85.327,85.3,10.36849578]
[1772126057258,4.32417212,85.327,85.301,11.72319199]
[1772126058554,4.32417212,85.327,85.303,11.72291713]
[1772126058763,11.71880066,85.333,85.303,11.72291713]
[1772126058764,11.71931312,85.33,85.303,13.28166413]
[1772126058946,16.04348524,85.33,85.303,13.28166413]
[1772126059146,4.32417212,85.33,85.304,1.558747]
[1772126059558,4.32417212,85.346,85.311,1.558747]
[1772126060741,4.32417212,85.344,85.311,11.72181781]
[1772126060943,4.32417212,85.339,85.3,10.36849578]
[1772126061143,4.32417212,85.339,85.301,1.558747]
[1772126061558,4.32417212,85.339,85.3,4.00342895]
[1772126062465,4.32417212,85.339,85.3,0.2]
[1772126062674,4.32417212,85.337,85.301,11.72319199]
[1772126063972,4.32417212,85.337,85.302,1.558747]
[1772126064751,4.32417212,85.335,85.303,11.72291713]
[1772126065460,4.32417212,85.335,85.302,1.558747]
[1772126065661,4.32417212,85.335,85.303,1.558747]
[1772126066268,4.32417212,85.335,85.3,10.38859646]
[1772126067356,4.32417212,85.333,85.301,11.72319199]
[1772126069257,4.32417212,85.341,85.302,1.558747]
[1772126069463,4.32417212,85.339,85.304,1.558747]
[1772126071276,11.7173612,85.344,85.313,1.558747]
[1772126071573,4.32417212,85.357,85.312,11.72168042]
[1772126071772,4.32417212,85.329,85.3,0.2]
[1772126071958,4.32417212,85.309,85.274,11.72684467]
[1772126072353,228.44958877,85.358,85.25,0.2]
[1772126072354,4.32417212,85.289,85.25,0.2]
[1772126072558,4.32417212,85.269,85.25,0.2]
[1772126073274,4.32417212,85.269,85.251,11.73006768]
[1772126073475,4.32417212,85.269,85.25,0.2]
[1772126073776,4.32417212,85.259,85.23,0.2]
[1772126073982,4.32417212,85.249,85.23,0.2]
[1772126074352,4.32417212,85.259,85.231,11.73282021]
[1772126075882,4.26993317,85.257,85.23,0.2]
[1772126076984,4.26993317,85.249,85.23,0.2]
[1772126077291,4.26993317,85.239,85.22,0.2]
[1772126077859,4.26993317,85.237,85.22,0.2]
[1772126078781,4.26993317,85.238,85.22,0.2]
[1772126079091,4.26993317,85.245,85.22,0.2]
[1772126079381,4.26993317,85.245,85.221,11.73419697]
[1772126079788,11.73011309,85.251,85.221,11.73419697]
[1772126080087,4.06391099,85.25,85.221,11.73419697]
[1772126080969,29.3224956,85.259,85.222,1.758747]
[1772126080970,4.06391099,85.259,85.222,1.758747]
[1772126081888,15.79164003,85.268,85.231,1.758747]
[1772126082094,4.06391099,85.268,85.231,1.758747]
[1772126083388,4.06391099,85.249,85.22,0.2]
[1772126083882,4.06391099,85.247,85.221,11.73419697]
[1772126085583,4.06391099,85.256,85.222,1.758747]
[1772126085787,10.20710393,85.26,85.222,1.758747]
[1772126085984,4.06391099,85.258,85.224,1.758747]
[1772126087186,4.06391099,85.249,85.22,11.93429223]
[1772126087366,4.06391099,85.239,85.22,0.2]
[1772126087573,3.69383402,85.286,85.22,0.2]
[1772126087574,4.06391099,85.265,85.231,1.758747]
[1772126088474,4.06391099,85.259,85.222,1.758747]
[1772126089180,10.20710393,85.26,85.22,0.2]
[1772126089181,4.06391099,85.257,85.22,0.2]
[1772126089374,4.06391099,85.249,85.22,0.2]
[1772126090295,4.06391099,85.247,85.22,11.93420033]
[1772126093200,4.06391099,85.245,85.22,0.2]
[1772126094291,4.06391099,85.245,85.221,11.73419697]
[1772126097377,11.73185668,85.238,85.22,0.2]
[1772126097579,4.06391099,85.237,85.22,0.2]
[1772126098906,4.06391099,85.244,85.22,0.2]
[1772126100673,4.06391099,85.244,85.22,11.93420388]
[1772126100880,58.63201362,85.278,85.22,11.93420388]
[1772126100881,4.06391099,85.279,85.231,1.758747]
[1772126101081,4.06391099,85.279,85.25,10.20710393]
[1772126101299,4.06391099,85.279,85.241,1.758747]
[1772126101501,4.06391099,85.269,85.224,1.758747]
[1772126101797,4.06391099,85.259,85.22,51.47714446]
[1772126102022,4.06391099,85.259,85.22,22.14130781]
[1772126102582,4.06391099,85.259,85.221,1.758747]
[1772126103000,4.06391099,85.259,85.222,42.82795448]
[1772126103201,4.06391099,85.257,85.223,1.758747]
[1772126104188,4.06391099,85.257,85.222,41.06920748]
[1772126104486,4.06391099,85.257,85.222,11.73405928]
[1772126105093,4.06391099,85.256,85.222,11.73405928]
[1772126105301,4.06391099,85.256,85.223,1.758747]
[1772126105602,4.06391099,85.264,85.231,1.758747]
[1772126105783,4.06391099,85.264,85.223,1.758747]
[1772126105989,4.06391099,85.264,85.23,10.20710393]
[1772126106304,4.06391099,85.264,85.231,1.758747]
[1772126107310,4.06391099,85.264,85.233,1.758747]
[1772126107703,4.06391099,85.264,85.24,3.80924507]
[1772126108088,4.06391099,85.264,85.24,5.56799207]
[1772126108784,11.7267341,85.276,85.242,1.758747]
[1772126108785,15.79064509,85.276,85.242,1.758747]
[1772126108990,4.06391099,85.287,85.251,1.758747]
[1772126109984,4.3712913,85.286,85.251,1.758747]
[1772126111514,4.3712913,85.279,85.24,10.19882767]
[1772126111813,4.3712913,85.269,85.231,13.49156721]
[1772126112110,4.3712913,85.269,85.232,1.758747]
[1772126113119,4.3712913,85.259,85.225,11.73358003]
[1772126113505,4.3712913,85.257,85.221,11.73413997]
[1772126114521,4.3712913,85.249,85.22,0.2]
[1772126114814,4.3712913,85.257,85.222,1.758747]
[1772126115414,4.3712913,85.257,85.223,11.73392159]
[1772126115620,4.3712913,85.257,85.224,1.758747]
[1772126116513,4.3712913,85.249,85.22,0.2]
[1772126116695,4.3712913,85.279,85.23,10.19882767]
[1772126116896,4.3712913,85.269,85.23,10.19882767]
[1772126117498,4.3712913,85.269,85.232,1.758747]
[1772126117903,4.3712913,85.267,85.232,1.758747]
[1772126118509,4.3712913,85.267,85.231,11.73282021]
[1772126119202,4.3712913,85.276,85.241,1.758747]
[1772126119510,11.72676634,85.275,85.242,11.73130616]
[1772126119708,4.3712913,85.274,85.242,11.73130616]
[1772126119911,4.3712913,85.274,85.243,1.758747]
[1772126120322,4.3712913,85.274,85.24,10.19882767]
[1772126120720,4.3712913,85.274,85.237,11.73186664]
[1772126120919,4.3712913,85.269,85.226,11.73350855]
[1772126121105,4.3712913,85.269,85.23,10.19882767]
[1772126123819,11.72772904,85.268,85.231,11.73282021]
[1772126124021,4.3712913,85.267,85.231,11.73282021]
[1772126125225,4.3712913,85.267,85.227,11.73327938]
[1772126125522,4.3712913,85.249,85.22,0.2]
[1772126125727,4.3712913,85.249,85.221,11.73419697]
[1772126126023,4.3712913,85.256,85.23,10.19882767]
[1772126126230,4.3712913,85.256,85.228,1.758747]
[1772126126828,4.3712913,85.256,85.221,41.06968939]
[1772126126829,4.3712913,85.28,85.25,10.19882767]
[1772126127010,41.03242043,85.299,85.261,4.47434123]
[1772126127216,10.19882767,85.29,85.253,4.47434123]
[1772126127417,10.19882767,85.29,85.221,88.00647727]
[1772126127418,10.19882767,85.28,85.24,10.19882767]
[1772126127617,10.19882767,85.29,85.241,4.47434123]
[1772126128204,11.72484142,85.289,85.241,4.47434123]
[1772126128510,41.03694497,85.289,85.251,4.47434123]
[1772126128916,4.3712913,85.288,85.25,10.19882767]
[1772126129122,4.3712913,85.288,85.243,4.47434123]
[1772126129525,4.3712913,85.279,85.24,10.19882767]
[1772126130333,4.3712913,85.277,85.235,4.47434123]
[1772126130634,4.3712913,85.277,85.24,10.19882767]
[1772126130828,4.3712913,85.277,85.241,4.47434123]
[1772126131234,4.3712913,85.277,85.23,10.19882767]
[1772126131931,4.3712913,85.277,85.231,4.47434123]
[1772126132429,10.19882767,85.28,85.23,10.19882767]
[1772126132430,4.3712913,85.275,85.233,4.47434123]
[1772126134628,4.3712913,85.275,85.22,0.2]
[1772126134629,4.3712913,85.259,85.22,0.2]
[1772126135011,4.33542026,85.249,85.22,4.0094852]
[1772126135206,4.33542026,85.249,85.22,0.2]
[1772126136307,4.33542026,85.249,85.221,4.27810134]
[1772126136638,4.33542026,85.247,85.22,0.2]
[1772126138634,4.33542026,85.247,85.21,4.0094852]
[1772126138635,4.33542026,85.237,85.21,0.2]
[1772126139620,4.48060293,85.229,85.2,0.2]
[1772126140532,4.48060293,85.219,85.19,0.2]
[1772126140736,3.8094852,85.22,85.19,0.2]
[1772126140737,4.48060293,85.217,85.19,0.2]
[1772126142333,4.48060293,85.209,85.17,3.81429849]
[1772126142518,4.48060293,85.209,85.172,4.12527992]
[1772126143037,4.48060293,85.199,85.16,3.81429849]
[1772126143933,4.48060293,85.189,85.157,4.12527992]
[1772126144134,4.48060293,85.189,85.153,11.74346397]
[1772126144717,3.81429849,85.2,85.161,4.12527992]
[1772126144921,4.48060293,85.199,85.161,4.12527992]
[1772126145113,16.21796765,85.198,85.163,4.12527992]
[1772126145318,4.48060293,85.197,85.163,4.12527992]
[1772126145641,4.48060293,85.205,85.171,4.12527992]
[1772126146040,4.48060293,85.199,85.171,4.12527992]
[1772126147243,4.48060293,85.197,85.171,4.12527992]
[1772126147442,4.48060293,85.197,85.166,11.74175254]
[1772126147745,4.48060293,85.197,85.167,4.12527992]
[1772126148320,4.48060293,85.197,85.161,11.74233087]
[1772126150235,4.48060293,85.195,85.16,4.12527992]
[1772126150421,4.48060293,85.195,85.161,4.12527992]
[1772126151121,4.48060293,85.189,85.16,3.81429849]
[1772126151519,4.48060293,85.189,85.158,4.12527992]
[1772126152538,4.48060293,85.194,85.161,4.12527992]
[1772126155044,4.48060293,85.189,85.161,4.12527992]
[1772126156245,4.48060293,85.189,85.15,3.81429849]
[1772126156246,4.48060293,85.179,85.141,4.12527992]
[1772126157235,4.48060293,85.169,85.133,4.12527992]
[1772126158232,4.48060293,85.149,85.121,4.12527992]
[1772126158451,4.48060293,85.149,85.114,4.12527992]
[1772126159444,4.48060293,85.139,85.106,4.12527992]
[1772126159751,4.48060293,85.129,85.1,11.75075929]
[1772126160138,3.81429849,85.13,85.1,11.75075929]
[1772126160139,4.48060293,85.127,85.1,11.75075929]
[1772126160433,4.48060293,85.119,85.09,0.1]
[1772126160644,4.48060293,85.127,85.092,4.12527992]
[1772126160839,11.74550376,85.139,85.101,4.12527992]
[1772126161246,4.48060293,85.138,85.101,4.12527992]
[1772126161449,4.48060293,85.129,85.101,4.12527992]
[1772126161639,4.48060293,85.142,85.111,4.12527992]
[1772126161951,16.22485918,85.149,85.111,4.12527992]
[1772126162148,4.48060293,85.148,85.111,4.12527992]
[1772126162350,4.48060293,85.148,85.113,4.12527992]
[1772126162549,4.48060293,85.146,85.113,4.12527992]
[1772126164544,4.48060293,85.146,85.115,4.12527992]
[1772126164860,4.48060293,85.158,85.13,4.12527992]
[1772126165439,4.48060293,85.17,85.131,4.12527992]
[1772126165962,4.48060293,85.17,85.141,4.12527992]
[1772126166161,4.48060293,85.159,85.132,4.12527992]
[1772126166464,41.1000728,85.158,85.121,4.12527992]
[1772126166664,4.48060293,85.157,85.121,4.12527992]
[1772126167258,4.48060293,85.157,85.131,4.12527992]
[1772126167560,4.48060293,85.157,85.122,11.74784427]
[1772126167561,4.48060293,85.173,85.141,4.12527992]
[1772126167962,4.48060293,85.173,85.15,3.81429849]
[1772126168143,4.48060293,85.173,85.149,4.12527992]
[1772126168558,4.48060293,85.173,85.15,11.7439812]
[1772126168863,4.48060293,85.18,85.151,4.12527992]
[1772126169163,4.48060293,85.18,85.16,3.81429849]
[1772126169760,4.44648762,85.184,85.151,4.30362269]
[1772126170258,4.44648762,85.183,85.151,4.30362269]
[1772126170866,4.44648762,85.183,85.121,46.99153996]
[1772126170867,3.81429849,85.2,85.161,4.30362269]
[1772126171040,4.44648762,85.199,85.161,4.30362269]
[1772126171240,4.44648762,85.231,85.17,3.81429849]
[1772126171446,4.44648762,85.209,85.171,4.30362269]
[1772126171748,4.44648762,85.189,85.161,4.30362269]
[1772126172142,4.44648762,85.189,85.154,4.30362269]
[1772126172347,4.44648762,85.179,85.148,4.30362269]
[1772126172673,4.44648762,85.179,85.151,4.30362269]
[1772126173075,4.44648762,85.179,85.152,16.04732806]
[1772126173367,3.69383402,85.216,85.152,16.04732806]
[1772126173368,4.44648762,85.205,85.171,4.30362269]
[1772126173774,4.44648762,85.199,85.163,4.30362269]
[1772126174265,4.44648762,85.199,85.156,4.30362269]
[1772126174470,4.44648762,85.189,85.151,11.74384329]
[1772126175378,3.81429849,85.19,85.151,11.74384329]
[1772126175379,4.44648762,85.187,85.151,11.74384329]
[1772126177106,4.44648762,85.187,85.151,16.04746598]
[1772126177261,8.26078611,85.2,85.161,4.30362269]
[1772126177459,3.81429849,85.21,85.171,4.30362269]
[1772126177767,4.44648762,85.223,85.191,4.30362269]
[1772126177952,4.44648762,85.237,85.2,3.81429849]
[1772126178271,11.73192837,85.238,85.162,135.03675345]
[1772126178272,4.44648762,85.229,85.201,4.30362269]
[1772126178478,4.44648762,85.219,85.179,4.30362269]
[1772126178672,4.44648762,85.219,85.181,4.30362269]
[1772126178879,4.44648762,85.219,85.191,4.30362269]
[1772126179061,4.44648762,85.229,85.191,4.30362269]
[1772126179459,4.44648762,85.227,85.192,16.04181406]
[1772126179660,4.44648762,85.227,85.193,4.30362269]
[1772126180982,4.44648762,85.219,85.181,11.73970721]
[1772126181157,4.44648762,85.219,85.177,4.30362269]
[1772126181358,11.73598723,85.208,85.178,11.74012068]
[1772126181554,46.92389444,85.245,85.179,4.30362269]
[1772126181555,9.0546959,85.241,85.179,4.30362269]
[1772126181776,10.21389744,85.22,85.156,4.30362269]
[1772126181978,5.36086188,85.227,85.151,4.30362269]
[1772126182183,10.21389744,85.18,85.151,4.30362269]
[1772126182479,10.21389744,85.19,85.151,4.30362269]
[1772126182880,3.69383402,85.187,85.139,4.30362269]
[1772126183060,10.21389744,85.16,85.124,4.30362269]
[1772126183384,11.74411913,85.149,85.117,11.74853437]
[1772126183575,4.44648762,85.148,85.117,4.30362269]
[1772126183775,4.44648762,85.152,85.117,4.30362269]
[1772126184077,14.66038506,85.15,85.117,4.30362269]
[1772126185086,4.44648762,85.148,85.111,4.30362269]
[1772126185396,3.69383402,85.186,85.115,4.30362269]
[1772126185397,4.44648762,85.158,85.115,4.30362269]
[1772126185766,4.44648762,85.163,85.121,4.30362269]
[1772126185960,4.44648762,85.159,85.121,4.30362269]
[1772126186991,4.44648762,85.149,85.121,4.30362269]
[1772126187167,4.44648762,85.147,85.121,4.30362269]
[1772126187867,4.44648762,85.139,85.112,11.74915328]
[1772126188067,4.44648762,85.139,85.107,11.7497845]
[1772126188374,10.21389744,85.16,85.121,4.30362269]
[1772126188867,4.44648762,85.159,85.121,4.30362269]
[1772126189268,4.44648762,85.157,85.123,4.30362269]
[1772126190169,10.21389744,85.15,85.123,4.30362269]
[1772126190478,4.44648762,85.149,85.123,4.30362269]
[1772126190785,4.44648762,85.139,85.1,10.21389744]
[1772126190976,4.44648762,85.129,85.097,4.30362269]
[1772126191673,4.44648762,85.127,85.098,11.75115748]
[1772126191878,4.44648762,85.134,85.099,4.30362269]
[1772126192467,10.21389744,85.14,85.101,4.30362269]
[1772126192666,4.44648762,85.153,85.111,4.30362269]
[1772126193067,10.21389744,85.15,85.111,4.30362269]
[1772126194075,11.74375206,85.152,85.121,4.30362269]
[1772126195489,10.21389744,85.15,85.121,4.30362269]
[1772126195691,4.22805313,85.151,85.121,4.30362269]
[1772126195989,29.3570137,85.159,85.121,4.30362269]
[1772126195990,4.22805313,85.159,85.121,4.30362269]
[1772126196489,4.22805313,85.157,85.123,4.25279185]
[1772126197189,4.22805313,85.149,85.123,4.25279185]
[1772126198289,4.22805313,85.167,85.13,10.21389744]
[1772126198477,58.68682455,85.198,85.141,4.25279185]
[1772126198478,4.22805313,85.176,85.141,4.25279185]
[1772126199094,46.94478363,85.207,85.132,15.99925616]
[1772126199095,4.22805313,85.169,85.132,15.99925616]
[1772126199681,4.22805313,85.169,85.133,4.17861569]
[1772126200892,4.18059075,85.179,85.141,4.17861569]
[1772126201095,4.18059075,85.199,85.151,4.17861569]
[1772126201387,4.18059075,85.199,85.171,4.17861569]
[1772126201584,15.91781771,85.199,85.171,4.17861569]
[1772126201987,4.18059075,85.198,85.171,4.17861569]
[1772126203174,11.73750249,85.197,85.171,4.17861569]
[1772126203374,4.18059075,85.196,85.172,11.74094772]
[1772126203693,15.91688435,85.206,85.18,10.22036737]
[1772126203886,4.18059075,85.214,85.181,4.17861569]
[1772126205391,4.18059075,85.212,85.183,4.17861569]
[1772126206770,11.73392159,85.223,85.191,4.17861569]
[1772126207175,4.18059075,85.222,85.191,4.17861569]
[1772126207595,4.18059075,85.248,85.211,4.17861569]
[1772126208095,4.18059075,85.257,85.23,10.22036737]
[1772126208288,11.72937975,85.256,85.231,4.17861569]
[1772126208598,4.18059075,85.255,85.221,4.17861569]
[1772126208891,4.18059075,85.265,85.231,4.17861569]
[1772126209093,11.72827922,85.264,85.231,4.17861569]
[1772126209475,29.31496324,85.281,85.2,13.91420139]
[1772126209476,11.7262163,85.279,85.25,14.39898306]
[1772126209678,10.42036737,85.29,85.25,14.39898306]
[1772126209679,11.72563183,85.284,85.252,4.17861569]
[1772126210002,11.72489293,85.289,85.252,4.17861569]
[1772126210296,10.22036737,85.27,85.231,4.17861569]
[1772126210597,4.18059075,85.269,85.231,4.17861569]
[1772126211999,4.18059075,85.269,85.23,10.22036737]
[1772126212000,11.72772904,85.268,85.233,4.17861569]
[1772126212214,0.2,85.28,85.26,14.39898306]
[1772126212415,4.18059075,85.279,85.25,10.22036737]
[1772126212785,4.18059075,85.279,85.251,4.17861569]
[1772126213289,4.18059075,85.279,85.243,4.17861569]
[1772126213488,4.18059075,85.279,85.25,10.22036737]
[1772126213706,4.18059075,85.279,85.25,14.39898306]
[1772126213895,4.18059075,85.277,85.241,4.17861569]
[1772126214210,4.18059075,85.305,85.27,14.39898306]
[1772126214386,4.18059075,85.305,85.271,4.17861569]
[1772126214579,4.18059075,85.299,85.26,10.22036737]
[1772126214786,4.18059075,85.299,85.241,41.06001504]
[1772126214787,4.18059075,85.279,85.241,15.91002126]
[1772126214995,4.18059075,85.279,85.241,11.73140557]
[1772126215200,4.18059075,85.287,85.242,4.17861569]
[1772126215396,4.18059075,85.279,85.242,4.17861569]
[1772126215705,4.18059075,85.269,85.234,4.17861569]
[1772126216082,4.18059075,85.269,85.23,10.22036737]
[1772126216083,4.18059075,85.269,85.236,4.17861569]
[1772126216894,4.18059075,85.269,85.241,4.17861569]
[1772126217505,4.18059075,85.269,85.242,11.73130616]
[1772126217812,4.18059075,85.267,85.222,4.17861569]
[1772126217990,4.18059075,85.249,85.222,4.17861569]
[1772126219624,4.18059075,85.257,85.223,4.17861569]
[1772126219795,110.88634071,85.288,85.223,4.17861569]
[1772126219796,4.18059075,85.266,85.231,4.17861569]
[1772126219999,4.18059075,85.271,85.231,4.17861569]
[1772126220204,4.18059075,85.271,85.241,4.17861569]
[1772126220905,15.90680705,85.279,85.241,4.17861569]
[1772126221116,3.69383402,85.306,85.223,41.06872557]
[1772126221117,4.18059075,85.309,85.271,4.17861569]
[1772126221411,4.18059075,85.309,85.28,14.39898306]
[1772126221614,4.18059075,85.308,85.28,4.17861569]
[1772126221802,4.18059075,85.308,85.276,11.72660211]
[1772126221997,4.18059075,85.308,85.28,10.22036737]
[1772126222410,4.18059075,85.307,85.28,10.22036737]
[1772126222997,4.18059075,85.316,85.29,10.22036737]
[1772126223199,15.90184047,85.316,85.29,10.22036737]
[1772126223406,15.90184047,85.316,85.28,14.39898306]
[1772126223715,15.90184047,85.316,85.281,4.17861569]
[1772126224094,4.38059075,85.31,85.282,11.7258038]
[1772126224396,11.72209262,85.309,85.282,11.7258038]
[1772126225036,0.2,85.31,85.291,4.17861569]
[1772126225321,3.69383402,85.357,85.282,11.7258038]
[1772126225322,11.71348464,85.372,85.304,4.17861569]
[1772126225496,15.89584666,85.359,85.33,10.22036737]
[1772126225696,4.18059075,85.349,85.317,4.17861569]
[1772126225926,4.18059075,85.349,85.31,10.22036737]
[1772126226117,0.2,85.35,85.321,4.17861569]
[1772126226321,4.18059075,85.348,85.321,4.17861569]
[1772126226521,4.18059075,85.348,85.311,11.72181781]
[1772126226522,4.18059075,85.348,85.32,10.22036737]
[1772126227221,4.18059075,85.348,85.32,4.17861569]
[1772126227633,4.18059075,85.348,85.32,10.22036737]
[1772126227823,4.18059075,85.348,85.31,10.22036737]
[1772126228322,4.18059075,85.346,85.311,11.72181781]
[1772126228730,10.22036737,85.34,85.301,4.17861569]
[1772126228930,4.18059075,85.339,85.301,4.17861569]
[1772126229133,4.18059075,85.379,85.331,4.17861569]
[1772126229335,4.18059075,85.379,85.35,10.22036737]